[Event "*** Qualifier 1: Titled Tuesday 3|2 Blitz"]
[Site "Chess.com"]
[Date "2017.04.04"]
[Round "6"]
[White "twitchTriniCupid"]
[Black "ka1ser64"]
[Result "1/2-1/2"]
[WhiteElo "2161"]
[BlackElo "2331"]
[TimeControl "180+2"]
[EndTime "14:26:31 PDT"]
[Termination "Game drawn by agreement"]

1. d4 {[%clk 0:03:02]} 1... d5 {[%clk 0:03:00.6]} 2. c4 {[%clk 0:03:03.4]} 2...
dxc4 {[%clk 0:03:01.8]} 3. e3 {[%clk 0:03:03]} 3... Nf6 {[%clk 0:03:02.8]} 4.
Bxc4 {[%clk 0:03:03.9]} 4... e6 {[%clk 0:03:04.5]} 5. Ne2 {[%clk 0:03:04.5]}
5... c5 {[%clk 0:03:06.2]} 6. O-O {[%clk 0:03:05.5]} 6... a6 {[%clk 0:03:07.7]}
7. Bd3 {[%clk 0:02:58]} 7... Nc6 {[%clk 0:03:07.2]} 8. dxc5 {[%clk 0:02:50.9]}
8... Bxc5 {[%clk 0:03:07.5]} 9. a3 {[%clk 0:02:49.5]} 9... O-O {[%clk
0:03:05.4]} 10. b4 {[%clk 0:02:50.4]} 10... Bd6 {[%clk 0:03:03.9]} 11. Bb2
{[%clk 0:02:49.7]} 11... Be5 {[%clk 0:03:05]} 12. Bxe5 {[%clk 0:02:31.9]} 12...
Nxe5 {[%clk 0:03:04.7]} 13. Bc2 {[%clk 0:02:32.4]} 13... Qe7 {[%clk 0:03:04.9]}
14. Qd4 {[%clk 0:02:31.6]} 14... Nc6 {[%clk 0:03:03.9]} 15. Qh4 {[%clk
0:02:32.3]} 15... e5 {[%clk 0:03:04.9]} 16. Nbc3 {[%clk 0:02:32.3]} 16... Bg4
{[%clk 0:02:54.5]} 17. f3 {[%clk 0:02:28.2]} 17... Be6 {[%clk 0:02:52.5]} 18.
Rac1 {[%clk 0:01:55.3]} 18... Rac8 {[%clk 0:02:53]} 19. Na4 {[%clk 0:01:50.5]}
19... Nd5 {[%clk 0:02:50.6]} 20. Qxe7 {[%clk 0:01:50.2]} 20... Ncxe7 {[%clk
0:02:51.2]} 21. Kf2 {[%clk 0:01:49.4]} 21... Rc6 {[%clk 0:01:53.2]} 22. Nc5
{[%clk 0:01:42.6]} 22... Rfc8 {[%clk 0:01:51.9]} 23. Bb3 {[%clk 0:01:36.2]}
23... R8c7 {[%clk 0:01:14.2]} 24. Nxe6 {[%clk 0:01:31.7]} 24... fxe6 {[%clk
0:01:15.3]} 25. e4 {[%clk 0:01:28.2]} 25... Nb6 {[%clk 0:01:05.3]} 26. Bxe6+
{[%clk 0:01:26.2]} 26... Kf8 {[%clk 0:01:05.7]} 27. Bb3 {[%clk 0:01:20.6]} 27...
Nc4 {[%clk 0:01:02.9]} 28. Bxc4 {[%clk 0:01:19.7]} 28... Rxc4 {[%clk 0:01:03.7]}
29. Rxc4 {[%clk 0:01:20.8]} 29... Rxc4 {[%clk 0:01:04.8]} 30. Rc1 {[%clk
0:01:21.9]} 30... b5 {[%clk 0:01:05.9]} 31. Ke3 {[%clk 0:01:14.1]} 31... Nc6
{[%clk 0:01:06.5]} 32. Kd3 {[%clk 0:01:11.6]} 32... Rxc1 {[%clk 0:01:06.2]} 33.
Nxc1 {[%clk 0:01:12.3]} 33... a5 {[%clk 0:01:04.8]} 34. bxa5 {[%clk 0:01:08.9]}
34... Nxa5 {[%clk 0:01:06]} 35. Kc3 {[%clk 0:01:09.5]} 35... Nc6 {[%clk
0:01:05]} 36. Na2 {[%clk 0:00:49.3]} 36... Ke7 {[%clk 0:01:05.1]} 37. Nb4 {[%clk
0:00:50.1]} 37... Na5 {[%clk 0:01:03.4]} 38. Nd5+ {[%clk 0:00:48.9]} 38... Kd6
{[%clk 0:01:04.2]} 39. Kb4 {[%clk 0:00:50.1]} 39... Nc4 {[%clk 0:01:05.3]} 40.
Nc3 {[%clk 0:00:49.3]} 40... Ne3 {[%clk 0:01:02.2]} 41. Nxb5+ {[%clk 0:00:27.6]}
41... Kc6 {[%clk 0:01:03.1]} 42. g3 {[%clk 0:00:20.9]} 42... Nf1 {[%clk
0:01:02]} 43. f4 {[%clk 0:00:21.8]} 43... exf4 {[%clk 0:00:54.9]} 44. gxf4
{[%clk 0:00:22.6]} 44... Nxh2 {[%clk 0:00:56.5]} 45. Nd4+ {[%clk 0:00:23]} 45...
Kb6 {[%clk 0:00:55.9]} 46. Kc4 {[%clk 0:00:22.5]} 46... Ng4 {[%clk 0:00:56.7]}
47. Nc2 {[%clk 0:00:19.6]} 47... h5 {[%clk 0:00:57.5]} 48. Kd3 {[%clk
0:00:14.5]} 48... h4 {[%clk 0:00:58.1]} 49. Ne1 {[%clk 0:00:14]} 49... h3 {[%clk
0:00:58.9]} 50. Nf3 {[%clk 0:00:15.2]} 50... h2 {[%clk 0:01:00]} 51. Nxh2 {[%clk
0:00:15.9]} 51... Nxh2 {[%clk 0:01:01.9]} 52. Ke3 {[%clk 0:00:16.2]} 52... Ng4+
{[%clk 0:01:02.8]} 53. Kf3 {[%clk 0:00:17.4]} 53... Nf6 {[%clk 0:01:03.3]} 54.
e5 {[%clk 0:00:17.5]} 54... Ne8 {[%clk 0:01:02.9]} 55. f5 {[%clk 0:00:18.4]}
55... Kc6 {[%clk 0:01:03.8]} 56. Kf4 {[%clk 0:00:19.6]} 56... Kd7 {[%clk
0:01:04.9]} 57. a4 {[%clk 0:00:20.9]} 57... Nc7 {[%clk 0:01:05.8]} 58. a5 {[%clk
0:00:22.1]} 58... Ke7 {[%clk 0:01:05.9]} 59. Kg5 {[%clk 0:00:23.4]} 59... Kf7
{[%clk 0:01:07]} 60. e6+ {[%clk 0:00:24.4]} 60... Kg8 {[%clk 0:01:04.1]} 61. Kg6
{[%clk 0:00:25.2]} 61... Kf8 {[%clk 0:01:03.5]} 62. Kg5 {[%clk 0:00:16.8]} 62...
Ke7 {[%clk 0:01:02.6]} 63. Kg6 {[%clk 0:00:15.8]} 63... Kf8 {[%clk 0:01:00.8]}
64. Kh7 {[%clk 0:00:14.2]} 64... Na6 {[%clk 0:00:59.2]} 65. Kg6 {[%clk
0:00:13.1]} 65... Nc5 {[%clk 0:00:58.8]} 66. f6 {[%clk 0:00:13.3]} 66... gxf6
{[%clk 0:00:59.3]} 67. Kxf6 {[%clk 0:00:14.2]} 67... Ke8 {[%clk 0:01:00.7]} 68.
Ke5 {[%clk 0:00:14.9]} 68... Ke7 {[%clk 0:01:00.2]} 69. Kd5 {[%clk 0:00:16]}
69... Nxe6 {[%clk 0:01:00.6]} 70. Kc6 {[%clk 0:00:15.9]} 70... Kd8 {[%clk
0:01:00.8]} 71. a6 {[%clk 0:00:16.4]} 71... Kc8 {[%clk 0:01:00.7]} 72. a7 {[%clk
0:00:15.8]} 72... Nc7 {[%clk 0:01:01.9]} 73. Kb6 {[%clk 0:00:16.5]} 73... Na8+
{[%clk 0:01:03]} 74. Kc6 {[%clk 0:00:17.9]} 74... Nc7 {[%clk 0:01:04.6]} 1/2-1/2

[Event "*** Qualifier 1: Titled Tuesday 3|2 Blitz"]
[Site "Chess.com"]
[Date "2017.04.04"]
[Round "6"]
[White "Sanan_Sjugirov"]
[Black "PaulfromSPb"]
[Result "1-0"]
[WhiteElo "2700"]
[BlackElo "2541"]
[TimeControl "180+2"]
[EndTime "14:26:47 PDT"]
[Termination "Sanan_Sjugirov won by resignation"]

1. d4 {[%clk 0:03:02]} 1... Nf6 {[%clk 0:02:59.7]} 2. Nf3 {[%clk 0:03:03.1]}
2... e6 {[%clk 0:02:59.7]} 3. Bg5 {[%clk 0:03:04]} 3... h6 {[%clk 0:02:54.6]} 4.
Bh4 {[%clk 0:03:05.1]} 4... d5 {[%clk 0:02:47.9]} 5. Nbd2 {[%clk 0:03:04.2]}
5... Be7 {[%clk 0:02:46.8]} 6. e3 {[%clk 0:03:05]} 6... c5 {[%clk 0:02:45.3]} 7.
c3 {[%clk 0:03:05.3]} 7... Nc6 {[%clk 0:02:45.7]} 8. Bd3 {[%clk 0:03:05.6]} 8...
b6 {[%clk 0:02:43.3]} 9. Qe2 {[%clk 0:03:06]} 9... O-O {[%clk 0:02:43.5]} 10.
Ne5 {[%clk 0:03:04.4]} 10... Nxe5 {[%clk 0:02:39.6]} 11. dxe5 {[%clk 0:03:06.3]}
11... Nd7 {[%clk 0:02:39.4]} 12. Bxe7 {[%clk 0:02:46.3]} 12... Qxe7 {[%clk
0:02:40.3]} 13. f4 {[%clk 0:02:47.5]} 13... Bb7 {[%clk 0:02:40.8]} 14. Nf3
{[%clk 0:02:33.8]} 14... d4 {[%clk 0:02:27.7]} 15. exd4 {[%clk 0:02:30.1]} 15...
Bxf3 {[%clk 0:02:23]} 16. Qxf3 {[%clk 0:02:30.7]} 16... cxd4 {[%clk 0:02:24.2]}
17. Qe4 {[%clk 0:02:20.7]} 17... g6 {[%clk 0:02:24.5]} 18. Qxd4 {[%clk
0:02:15.8]} 18... Rad8 {[%clk 0:02:23.7]} 19. Qe3 {[%clk 0:02:13]} 19... Nc5
{[%clk 0:02:17.4]} 20. Be2 {[%clk 0:02:06.3]} 20... Qh4+ {[%clk 0:02:17.5]} 21.
g3 {[%clk 0:01:45.5]} 21... Qh3 {[%clk 0:02:17.7]} 22. Rd1 {[%clk 0:01:37.4]}
22... Qf5 {[%clk 0:02:03.4]} 23. b4 {[%clk 0:01:11.2]} 23... Na4 {[%clk
0:02:02.8]} 24. O-O {[%clk 0:00:52.7]} 24... Qc2 {[%clk 0:02:03]} 25. Rc1 {[%clk
0:00:53.2]} 25... Qxa2 {[%clk 0:02:02]} 26. Bb5 {[%clk 0:00:41.5]} 26... Rd2
{[%clk 0:01:49.6]} 27. Rf2 {[%clk 0:00:36.9]} 27... Rfd8 {[%clk 0:01:43.5]} 28.
Rxd2 {[%clk 0:00:20.7]} 28... Rxd2 {[%clk 0:01:43]} 29. Bxa4 {[%clk 0:00:17.8]}
29... Rg2+ {[%clk 0:01:39.6]} 30. Kf1 {[%clk 0:00:18.4]} 30... Rxh2 {[%clk
0:01:30.8]} 31. Bc6 {[%clk 0:00:19.3]} 31... Rd2 {[%clk 0:01:18.5]} 32. Bf3
{[%clk 0:00:16.7]} 32... a5 {[%clk 0:01:18.1]} 33. bxa5 {[%clk 0:00:16.8]} 33...
bxa5 {[%clk 0:01:19.2]} 34. Kg1 {[%clk 0:00:14.7]} 34... a4 {[%clk 0:01:20.1]}
35. c4 {[%clk 0:00:10.5]} 35... Qb2 {[%clk 0:01:16.9]} 36. Qc3 {[%clk
0:00:09.8]} 36... a3 {[%clk 0:01:11.6]} 37. Qxb2 {[%clk 0:00:08.7]} 37... axb2
{[%clk 0:01:10.5]} 38. Rf1 {[%clk 0:00:06.6]} 38... Rc2 {[%clk 0:01:10.2]} 39.
Be4 {[%clk 0:00:07.2]} 39... Rxc4 {[%clk 0:01:11.2]} 40. Bb1 {[%clk 0:00:08.3]}
40... Rc1 {[%clk 0:01:11]} 41. Kf2 {[%clk 0:00:09.6]} 41... Kf8 {[%clk
0:01:07.3]} 42. Ke2 {[%clk 0:00:11]} 42... Rc3 {[%clk 0:01:02.2]} 43. Bd3 {[%clk
0:00:08.6]} 43... Rc1 {[%clk 0:00:59.9]} 44. Rd1 {[%clk 0:00:08.7]} 44... g5
{[%clk 0:00:58.8]} 45. Kd2 {[%clk 0:00:09.3]} 45... gxf4 {[%clk 0:00:57.8]} 46.
gxf4 {[%clk 0:00:10]} 46... Rc6 {[%clk 0:00:51.8]} 47. Rb1 {[%clk 0:00:11]}
47... Rb6 {[%clk 0:00:52.6]} 48. Kc3 {[%clk 0:00:12.1]} 48... Rc6+ {[%clk
0:00:49.7]} 49. Bc4 {[%clk 0:00:13.3]} 49... h5 {[%clk 0:00:45.8]} 50. Rxb2
{[%clk 0:00:14.5]} 50... Kg7 {[%clk 0:00:47.2]} 51. Rg2+ {[%clk 0:00:14]} 51...
Kh6 {[%clk 0:00:48.3]} 52. Kd4 {[%clk 0:00:15]} 52... h4 {[%clk 0:00:49]} 53.
Rg8 {[%clk 0:00:15.6]} 53... Kh7 {[%clk 0:00:43.4]} 54. Rg4 {[%clk 0:00:15.8]}
54... h3 {[%clk 0:00:43.6]} 55. Rh4+ {[%clk 0:00:16.4]} 55... Kg6 {[%clk
0:00:44.2]} 56. Bd3+ {[%clk 0:00:17.6]} 56... Kg7 {[%clk 0:00:45.6]} 57. Rxh3
{[%clk 0:00:18.7]} 57... Rc7 {[%clk 0:00:45.8]} 58. Rh1 {[%clk 0:00:16.8]} 58...
Ra7 {[%clk 0:00:45.1]} 59. Ke3 {[%clk 0:00:17.7]} 59... Ra4 {[%clk 0:00:45.7]}
60. Rg1+ {[%clk 0:00:18.4]} 60... Kf8 {[%clk 0:00:46]} 61. Rc1 {[%clk
0:00:19.4]} 61... Kg7 {[%clk 0:00:44.6]} 62. Rc7 {[%clk 0:00:20.5]} 62... Ra3
{[%clk 0:00:44.5]} 63. Kd4 {[%clk 0:00:19.9]} 63... Ra4+ {[%clk 0:00:45.1]} 64.
Bc4 {[%clk 0:00:21.4]} 64... Kg6 {[%clk 0:00:46.2]} 65. Kc5 {[%clk 0:00:21.8]}
65... f6 {[%clk 0:00:42.4]} 66. Bxe6 {[%clk 0:00:18.5]} 66... Rxf4 {[%clk
0:00:40]} 67. Bf7+ {[%clk 0:00:18.8]} 67... Kg7 {[%clk 0:00:35.4]} 68. e6 {[%clk
0:00:19.6]} 68... f5 {[%clk 0:00:36.2]} 69. Bh5+ {[%clk 0:00:18.5]} 69... Kf6
{[%clk 0:00:36.9]} 70. e7 {[%clk 0:00:19]} 1-0

[Event "*** Qualifier 1: Titled Tuesday 3|2 Blitz"]
[Site "Chess.com"]
[Date "2017.04.04"]
[Round "6"]
[White "dolynachess"]
[Black "Tirantes"]
[Result "1/2-1/2"]
[WhiteElo "2294"]
[BlackElo "2205"]
[TimeControl "180+2"]
[EndTime "14:27:04 PDT"]
[Termination "Game drawn by repetition"]

1. c4 {[%clk 0:03:02]} 1... e5 {[%clk 0:02:56.9]} 2. Nc3 {[%clk 0:03:03.3]} 2...
Nf6 {[%clk 0:02:56.4]} 3. g3 {[%clk 0:03:04.7]} 3... d5 {[%clk 0:02:55.2]} 4.
cxd5 {[%clk 0:03:04.1]} 4... Nxd5 {[%clk 0:02:56]} 5. Bg2 {[%clk 0:03:06]} 5...
Nb6 {[%clk 0:02:56.3]} 6. Nf3 {[%clk 0:03:05.7]} 6... Nc6 {[%clk 0:02:56]} 7.
O-O {[%clk 0:03:03.5]} 7... Be7 {[%clk 0:02:55.4]} 8. a3 {[%clk 0:03:02.1]} 8...
O-O {[%clk 0:02:50.5]} 9. b4 {[%clk 0:03:02.5]} 9... Be6 {[%clk 0:02:37]} 10. b5
{[%clk 0:02:49.7]} 10... Nd4 {[%clk 0:02:34.5]} 11. Nxd4 {[%clk 0:02:48.5]}
11... exd4 {[%clk 0:02:32.3]} 12. Na4 {[%clk 0:02:49.5]} 12... Bd5 {[%clk
0:02:26.5]} 13. Bb2 {[%clk 0:02:43.1]} 13... Bxg2 {[%clk 0:02:17.5]} 14. Kxg2
{[%clk 0:02:45]} 14... Qd5+ {[%clk 0:02:12.7]} 15. f3 {[%clk 0:02:45.3]} 15...
Qxb5 {[%clk 0:02:08.5]} 16. Nxb6 {[%clk 0:02:44.5]} 16... Qxb6 {[%clk
0:02:04.7]} 17. Rb1 {[%clk 0:02:44.7]} 17... Qd6 {[%clk 0:01:54.4]} 18. Qa4
{[%clk 0:02:40.3]} 18... c5 {[%clk 0:01:41.5]} 19. e4 {[%clk 0:02:35.3]} 19...
a6 {[%clk 0:01:24.9]} 20. d3 {[%clk 0:02:28.9]} 20... b5 {[%clk 0:01:25.3]} 21.
Qb3 {[%clk 0:02:27.3]} 21... Rac8 {[%clk 0:01:14.9]} 22. Rfc1 {[%clk 0:02:27.3]}
22... Kh8 {[%clk 0:01:08.7]} 23. Rc2 {[%clk 0:02:25.1]} 23... f5 {[%clk
0:01:05.4]} 24. Re1 {[%clk 0:01:56.7]} 24... fxe4 {[%clk 0:00:57.7]} 25. Rxe4
{[%clk 0:01:57]} 25... Qf6 {[%clk 0:00:44]} 26. f4 {[%clk 0:01:55.1]} 26... Bd6
{[%clk 0:00:27.8]} 27. Qe6 {[%clk 0:01:38.4]} 27... h6 {[%clk 0:00:20.2]} 28.
Qxf6 {[%clk 0:01:32.7]} 28... gxf6 {[%clk 0:00:18.8]} 29. Re6 {[%clk 0:01:33.9]}
29... Rcd8 {[%clk 0:00:18.2]} 30. Rce2 {[%clk 0:01:27.7]} 30... Kg8 {[%clk
0:00:18.2]} 31. f5 {[%clk 0:01:26.1]} 31... Kf7 {[%clk 0:00:18.4]} 32. Bc1
{[%clk 0:01:25.6]} 32... h5 {[%clk 0:00:17.9]} 33. Bf4 {[%clk 0:01:22.6]} 33...
Bxf4 {[%clk 0:00:14.3]} 34. Re7+ {[%clk 0:01:23.7]} 34... Kg8 {[%clk 0:00:14.8]}
35. gxf4 {[%clk 0:01:25.3]} 35... Rf7 {[%clk 0:00:15.4]} 36. R7e6 {[%clk
0:01:22.4]} 36... Kg7 {[%clk 0:00:15.7]} 37. Kf3 {[%clk 0:01:23]} 37... c4
{[%clk 0:00:16.5]} 38. Rxa6 {[%clk 0:01:08.8]} 38... c3 {[%clk 0:00:16.6]} 39.
Rc6 {[%clk 0:00:59]} 39... Rfd7 {[%clk 0:00:16.8]} 40. Rc5 {[%clk 0:00:57.6]}
40... Ra8 {[%clk 0:00:17.1]} 41. Rg2+ {[%clk 0:00:51.9]} 41... Kf7 {[%clk
0:00:16.9]} 42. Rxb5 {[%clk 0:00:53]} 42... Rxa3 {[%clk 0:00:16.9]} 43. Rb8
{[%clk 0:00:52.2]} 43... Ke7 {[%clk 0:00:11.3]} 44. Rb6 {[%clk 0:00:41.8]} 44...
Kd8 {[%clk 0:00:12.1]} 45. Rxf6 {[%clk 0:00:40.3]} 45... Kc7 {[%clk 0:00:12.5]}
46. Rgg6 {[%clk 0:00:38.4]} 46... Rb3 {[%clk 0:00:11]} 47. Rc6+ {[%clk
0:00:39.3]} 47... Kb7 {[%clk 0:00:12.1]} 48. Rge6 {[%clk 0:00:39.1]} 48... Rc7
{[%clk 0:00:11.9]} 49. Rxc7+ {[%clk 0:00:38.7]} 49... Kxc7 {[%clk 0:00:12]} 50.
f6 {[%clk 0:00:39.3]} 50... Rb8 {[%clk 0:00:12.5]} 51. Re4 {[%clk 0:00:34.4]}
51... c2 {[%clk 0:00:12.3]} 52. Re1 {[%clk 0:00:34.6]} 52... Rb1 {[%clk
0:00:12.9]} 53. f7 {[%clk 0:00:34.1]} 53... Rxe1 {[%clk 0:00:13.8]} 54. f8=Q
{[%clk 0:00:35.2]} 54... c1=Q {[%clk 0:00:13.5]} 55. Qf7+ {[%clk 0:00:34.1]}
55... Kc6 {[%clk 0:00:13.4]} 56. Qf6+ {[%clk 0:00:33.8]} 56... Kc5 {[%clk
0:00:14.4]} 57. Qf8+ {[%clk 0:00:34.6]} 57... Kb5 {[%clk 0:00:14.9]} 58. Qb8+
{[%clk 0:00:35.3]} 58... Ka4 {[%clk 0:00:15.6]} 59. Qa7+ {[%clk 0:00:35]} 59...
Kb3 {[%clk 0:00:16.3]} 60. Qxd4 {[%clk 0:00:31.9]} 60... Rf1+ {[%clk 0:00:17.1]}
61. Kg2 {[%clk 0:00:31.6]} 61... Qxf4 {[%clk 0:00:15.8]} 62. Qd5+ {[%clk
0:00:25.4]} 62... Kc3 {[%clk 0:00:15.9]} 63. Qc5+ {[%clk 0:00:26.3]} 63... Kd2
{[%clk 0:00:15.3]} 64. Qa5+ {[%clk 0:00:25.8]} 64... Ke2 {[%clk 0:00:12.6]} 65.
Qa2+ {[%clk 0:00:24.9]} 65... Ke3 {[%clk 0:00:10.9]} 66. Qe6+ {[%clk 0:00:22.5]}
66... Kd2 {[%clk 0:00:08.1]} 67. Qa2+ {[%clk 0:00:22.3]} 67... Kc3 {[%clk
0:00:06.7]} 68. Qa3+ {[%clk 0:00:23.2]} 68... Kc2 {[%clk 0:00:07.4]} 69. Qa2+
{[%clk 0:00:23.9]} 69... Kc3 {[%clk 0:00:07.5]} 70. Qa3+ {[%clk 0:00:25]} 70...
Kc2 {[%clk 0:00:08.2]} 71. Qa2+ {[%clk 0:00:25.9]} 71... Kc3 {[%clk 0:00:09.3]}
1/2-1/2

[Event "*** Qualifier 1: Titled Tuesday 3|2 Blitz"]
[Site "Chess.com"]
[Date "2017.04.04"]
[Round "6"]
[White "davidarenas1224"]
[Black "GMMelik"]
[Result "0-1"]
[WhiteElo "2328"]
[BlackElo "2490"]
[TimeControl "180+2"]
[EndTime "14:27:29 PDT"]
[Termination "GMMelik won by resignation"]

1. e4 {[%clk 0:03:02]} 1... d6 {[%clk 0:02:56.5]} 2. d4 {[%clk 0:03:02.7]} 2...
Nf6 {[%clk 0:02:57]} 3. Nc3 {[%clk 0:03:04.2]} 3... e5 {[%clk 0:02:58]} 4. Nf3
{[%clk 0:03:02.8]} 4... Nbd7 {[%clk 0:02:58.4]} 5. g4 {[%clk 0:03:02.4]} 5... g6
{[%clk 0:02:56]} 6. Rg1 {[%clk 0:02:29.3]} 6... Bg7 {[%clk 0:02:54.4]} 7. Be3
{[%clk 0:02:30.2]} 7... O-O {[%clk 0:02:54.6]} 8. Qd2 {[%clk 0:02:29.7]} 8... d5
{[%clk 0:02:50.1]} 9. exd5 {[%clk 0:01:58]} 9... e4 {[%clk 0:02:50.2]} 10. Ng5
{[%clk 0:01:42.1]} 10... Re8 {[%clk 0:02:49.1]} 11. O-O-O {[%clk 0:01:30]} 11...
Nb6 {[%clk 0:02:47.4]} 12. Bb5 {[%clk 0:01:06.2]} 12... Bd7 {[%clk 0:02:46.5]}
13. Bxd7 {[%clk 0:01:03.5]} 13... Qxd7 {[%clk 0:02:46.9]} 14. h4 {[%clk
0:00:35.8]} 14... Nfxd5 {[%clk 0:01:57.3]} 15. Ngxe4 {[%clk 0:00:27.6]} 15...
Nc4 {[%clk 0:01:49.4]} 16. Qd3 {[%clk 0:00:28.6]} 16... Ncxe3 {[%clk 0:01:30.1]}
17. fxe3 {[%clk 0:00:30.5]} 17... b6 {[%clk 0:01:19.4]} 18. Nxd5 {[%clk
0:00:30.2]} 18... Qxd5 {[%clk 0:01:19.9]} 19. Nc3 {[%clk 0:00:31.9]} 19... Qa5
{[%clk 0:01:16.8]} 20. Kb1 {[%clk 0:00:29.2]} 20... c5 {[%clk 0:01:16.4]} 21.
Rgf1 {[%clk 0:00:26.2]} 21... Rad8 {[%clk 0:01:07.9]} 22. Qc4 {[%clk 0:00:26.2]}
22... Rf8 {[%clk 0:00:58.7]} 23. Nd5 {[%clk 0:00:26.3]} 23... cxd4 {[%clk
0:00:57.5]} 24. Ne7+ {[%clk 0:00:26.9]} 24... Kh8 {[%clk 0:00:58.2]} 25. exd4
{[%clk 0:00:21.3]} 25... b5 {[%clk 0:00:50.8]} 26. Qb3 {[%clk 0:00:19.9]} 26...
Qc7 {[%clk 0:00:45]} 27. Nd5 {[%clk 0:00:17.9]} 27... Qd7 {[%clk 0:00:44.4]} 28.
Nc3 {[%clk 0:00:18.6]} 28... Qxg4 {[%clk 0:00:43.1]} 29. Rxf7 {[%clk 0:00:13.5]}
29... Rxf7 {[%clk 0:00:42.5]} 30. Qxf7 {[%clk 0:00:14.5]} 30... b4 {[%clk
0:00:43.7]} 31. Qe7 {[%clk 0:00:15]} 31... Rc8 {[%clk 0:00:37.3]} 32. Qxb4
{[%clk 0:00:14.4]} 32... Rxc3 {[%clk 0:00:33.1]} 33. bxc3 {[%clk 0:00:15.4]}
33... Qxd1+ {[%clk 0:00:33.6]} 34. Kb2 {[%clk 0:00:17]} 34... h5 {[%clk
0:00:34.7]} 35. Qb8+ {[%clk 0:00:17.3]} 35... Kh7 {[%clk 0:00:35.2]} 36. Qxa7
{[%clk 0:00:19.2]} 36... Qg4 {[%clk 0:00:35.8]} 37. Qe7 {[%clk 0:00:19.9]} 37...
g5 {[%clk 0:00:35.2]} 38. hxg5 {[%clk 0:00:21]} 38... h4 {[%clk 0:00:36.3]} 39.
d5 {[%clk 0:00:19.2]} 39... h3 {[%clk 0:00:34.1]} 40. d6 {[%clk 0:00:20.1]}
40... Qb4+ {[%clk 0:00:34.9]} 41. Kc1 {[%clk 0:00:20.5]} 41... Qxc3 {[%clk
0:00:36.1]} 42. Qe4+ {[%clk 0:00:16.7]} 42... Kg8 {[%clk 0:00:34.9]} 43. Qe6+
{[%clk 0:00:16.4]} 43... Kh8 {[%clk 0:00:30.8]} 44. Qe8+ {[%clk 0:00:16.6]}
44... Kh7 {[%clk 0:00:32]} 45. Qh5+ {[%clk 0:00:14.3]} 45... Kg8 {[%clk
0:00:32.6]} 46. Qe8+ {[%clk 0:00:15]} 46... Bf8 {[%clk 0:00:29.4]} 47. Qe6+
{[%clk 0:00:15.5]} 47... Kg7 {[%clk 0:00:28.5]} 48. Qh6+ {[%clk 0:00:13.5]}
48... Kf7 {[%clk 0:00:24.4]} 49. g6+ {[%clk 0:00:14.7]} 49... Ke8 {[%clk
0:00:25.6]} 50. Qh5 {[%clk 0:00:10.4]} 50... Bg7 {[%clk 0:00:21.8]} 51. Qb5+
{[%clk 0:00:10]} 51... Kd8 {[%clk 0:00:20.3]} 52. Qb8+ {[%clk 0:00:08.1]} 52...
Kd7 {[%clk 0:00:21.7]} 53. Qb7+ {[%clk 0:00:09.2]} 53... Kxd6 {[%clk 0:00:22.5]}
54. Qb6+ {[%clk 0:00:10]} 54... Ke7 {[%clk 0:00:23.2]} 55. Qb7+ {[%clk
0:00:10.2]} 55... Kf6 {[%clk 0:00:23.3]} 56. Qe4 {[%clk 0:00:10.9]} 56... Kg5
{[%clk 0:00:23.8]} 57. Qe7+ {[%clk 0:00:10.4]} 57... Kxg6 {[%clk 0:00:24.6]} 58.
a4 {[%clk 0:00:10.1]} 58... Bf6 {[%clk 0:00:23.9]} 59. Qe4+ {[%clk 0:00:09]}
59... Kh5 {[%clk 0:00:23.9]} 60. Qf5+ {[%clk 0:00:09.9]} 60... Bg5+ {[%clk
0:00:25.1]} 61. Kb1 {[%clk 0:00:05.1]} 61... Qb4+ {[%clk 0:00:25.8]} 62. Ka2
{[%clk 0:00:05.1]} 62... Qxa4+ {[%clk 0:00:27.1]} 63. Kb2 {[%clk 0:00:06]} 63...
Qb4+ {[%clk 0:00:27.9]} 64. Ka2 {[%clk 0:00:06.7]} 64... Qg4 {[%clk 0:00:28.9]}
65. Qh7+ {[%clk 0:00:07]} 65... Bh6 {[%clk 0:00:30.1]} 66. Qf7+ {[%clk 0:00:08]}
66... Kh4 {[%clk 0:00:30.5]} 67. Qf6+ {[%clk 0:00:09.1]} 67... Bg5 {[%clk
0:00:31.3]} 68. Qf2+ {[%clk 0:00:09.7]} 68... Qg3 {[%clk 0:00:31.6]} 69. Qd4+
{[%clk 0:00:10.8]} 69... Kh5 {[%clk 0:00:32.1]} 70. Qh8+ {[%clk 0:00:11.6]}
70... Kg4 {[%clk 0:00:33.4]} 71. Qd4+ {[%clk 0:00:12.3]} 71... Bf4 {[%clk
0:00:33.7]} 72. Qd7+ {[%clk 0:00:12]} 72... Kf3 {[%clk 0:00:34.7]} 73. Qd3+
{[%clk 0:00:12.9]} 73... Be3 {[%clk 0:00:35.4]} 74. Qf5+ {[%clk 0:00:13.6]}
74... Kg2 {[%clk 0:00:35.4]} 75. Qe4+ {[%clk 0:00:14.7]} 75... Kg1 {[%clk
0:00:36.5]} 76. c4 {[%clk 0:00:14.7]} 76... h2 {[%clk 0:00:37.7]} 77. Qb1+
{[%clk 0:00:14.9]} 77... Kg2 {[%clk 0:00:39]} 78. Qe4+ {[%clk 0:00:15.9]} 78...
Qf3 {[%clk 0:00:40.2]} 79. Qg6+ {[%clk 0:00:16.9]} 79... Kf1 {[%clk 0:00:38.5]}
80. Qd3+ {[%clk 0:00:17.7]} 80... Qe2+ {[%clk 0:00:38.9]} 81. Qxe2+ {[%clk
0:00:19]} 81... Kxe2 {[%clk 0:00:39.9]} 0-1